bitfinex/quotes_SOLUSD_20240614
["timestamp","ask_amount","ask_price","bid_price","bid_amount"]
[1718378853775,0.817954,145.1,145.07,2.5504]
[1718378853967,0.817954,145.1,145.07,22.954]
[1718378854156,0.817954,145.1,145.07,25.5043]
[1718378854680,0.817954,145.1,145.07,7.6512]
[1718378854986,0.817954,145.1,145.07,2.5503]
[1718378855278,0.817954,145.1,145.06,7.8215]
[1718378855493,0.817954,145.1,145.07,0.17]
[1718378855887,0.817954,145.1,145.07,2.7204]
[1718378857100,0.817954,145.1,145.08,0.17]
[1718378857381,0.817954,145.1,145.08,2.5502]
[1718378857756,0.817954,145.1,145.07,7.8209]
[1718378858156,0.817954,145.1,145.07,2.7203]
[1718378858552,0.817954,145.1,145.02,21.56]
[1718378858784,0.817954,145.1,145.05,2.5508]
[1718378858963,0.817954,145.1,145.02,21.56]
[1718378858964,0.817954,145.1,145.07,2.5503]
[1718378859155,0.817954,145.1,145.07,15.3026]
[1718378859357,0.817954,145.1,145.07,25.5044]
[1718378859557,0.817954,145.1,145.06,7.6516]
[1718378859779,0.817954,145.1,145.06,17.8544]
[1718378859989,0.817954,145.1,145.07,7.6512]
[1718378860357,0.817954,145.1,145.05,0.17]
[1718378860578,0.817954,145.1,145.07,7.6511]
[1718378860991,0.817954,145.1,145.04,17.8563]
[1718378861292,0.817954,145.1,145.04,22.9585]
[1718378861607,0.817954,145.1,145.06,10.2024]
[1718378861899,0.817954,145.1,145.06,5.1011]
[1718378862076,17.8468,145.13,145.06,22.9556]
[1718378862077,22.263754,145.13,145.06,22.9556]
[1718378862299,24.813254,145.13,145.07,2.5504]
[1718378862616,2.5494,145.13,145.07,25.5038]
[1718378862786,22.9436,145.14,145.07,25.5038]
[1718378862787,25.493,145.14,145.08,2.5503]
[1718378862987,2.5494,145.13,145.07,25.5038]
[1718378863388,25.493,145.14,145.07,25.5038]
[1718378863585,2.5494,145.13,145.07,25.5038]
[1718378863824,2.5494,145.13,145.07,17.8526]
[1718378864149,2.5496,145.12,145.06,25.5054]
[1718378864620,2.5498,145.11,145.05,7.9922]
[1718378864924,22.9469,145.12,145.06,2.5506]
[1718378865091,15.2971,145.13,145.07,2.5504]
[1718378865414,7.6485,145.13,145.07,2.5504]
[1718378865590,2.5496,145.12,145.06,15.3037]
[1718378865915,2.5496,145.12,145.06,7.6517]
[1718378866615,7.6488,145.12,145.06,2.5505]
[1718378866915,0.17,145.12,145.02,18.029]
[1718378867091,100.0,145.11,145.02,10.2054]
[1718378867291,7.6489,145.12,145.06,2.5505]
[1718378867511,7.6489,145.12,145.06,7.6518]
[1718378867512,2.5496,145.12,145.06,7.6518]
[1718378867708,106.1712,145.15,145.06,7.6519]
[1718378867887,22.9436,145.14,145.07,5.1007]
[1718378868086,111.63369015,145.15,145.03,21.56]
[1718378868396,6.1712,145.15,145.09,12.7504]
[1718378868598,8.7203,145.15,145.09,7.6501]
[1718378869116,2.5492,145.14,145.08,7.6504]
[1718378869285,2.5492,145.14,145.08,7.6507]
[1718378869488,15.2955,145.14,145.07,25.5038]
[1718378869686,15.2955,145.14,145.08,2.5502]
[1718378869687,2.5492,145.14,145.08,2.5502]
[1718378869897,31.6629,145.15,145.08,22.9525]
[1718378870099,31.6629,145.15,145.09,2.5501]
[1718378870314,31.6629,145.15,145.08,25.5026]
[1718378870598,29.1137,145.15,145.08,25.5026]
[1718378870801,2.5493,145.14,145.08,7.6506]
[1718378871111,13.8187,145.15,145.09,2.5501]
[1718378871411,13.8187,145.15,145.09,22.9505]
[1718378871412,6.1712,145.15,145.09,22.9505]
[1718378871616,6.1712,145.15,145.09,7.6499]
[1718378871617,2.5491,145.15,145.09,7.6499]
[1718378871792,41.8893,145.16,145.09,15.3002]
[1718378871992,2.5491,145.15,145.09,7.6499]
[1718378872414,2.5491,145.15,145.08,17.8513]
[1718378872415,2.5492,145.14,145.08,25.5019]
[1718378872607,7.6477,145.14,145.08,2.5501]
[1718378872804,2.5495,145.13,145.07,7.6511]
[1718378873109,2.5495,145.13,145.06,34.5572]
[1718378873110,22.9423,145.15,145.09,2.5501]
[1718378873299,25.4915,145.15,145.09,2.5501]
[1718378873499,25.4915,145.15,145.08,25.5024]
[1718378873711,25.4915,145.15,145.09,2.5501]
[1718378874403,25.4915,145.15,145.08,25.5024]
[1718378874728,15.2955,145.14,145.07,25.5038]
[1718378874905,25.4925,145.14,145.08,47.8902]
[1718378875100,2.5492,145.14,145.08,52.9907]
[1718378875303,25.4917,145.15,145.08,68.2923]
[1718378875607,25.4918,145.15,145.08,70.8424]
[1718378875808,2.5492,145.14,145.08,70.8424]
[1718378876639,2.5492,145.14,145.08,52.9906]
[1718378876812,2.5492,145.14,145.1,7.18]
[1718378877016,7.6477,145.14,145.1,7.18]
[1718378877329,32.6719,145.15,145.1,7.18]
[1718378877527,2.5492,145.14,145.1,7.18]
[1718378877736,32.6719,145.15,145.1,7.18]
[1718378877898,2.5492,145.14,145.08,70.8426]
[1718378878101,2.5492,145.14,145.1,7.18]
[1718378878837,32.6719,145.15,145.1,7.18]
[1718378879128,2.5492,145.14,145.1,7.18]
[1718378879697,32.6719,145.15,145.1,7.18]
[1718378879926,14.8276,145.15,145.1,7.18]
[1718378880134,16.3997,145.16,145.08,45.34]
[1718378880316,16.3997,145.16,145.12,7.18]
[1718378880626,15.9218,145.18,145.13,7.18]
[1718378880839,28.6647,145.18,145.13,7.18]
[1718378881020,38.8589,145.18,145.13,7.18]
[1718378881215,28.6646,145.18,145.13,7.18]
[1718378881515,38.8588,145.18,145.13,7.18]
[1718378881845,38.8588,145.18,145.11,7.18]
[1718378881846,2.5491,145.15,145.11,7.18]
[1718378882137,14.8264,145.17,145.11,9.7297]
[1718378882309,6.1933,145.18,145.12,7.18]
[1718378882310,36.3113,145.18,145.12,7.18]
[1718378882506,2.5488,145.17,145.12,7.18]
[1718378882731,13.3733,145.18,145.12,19.9278]
[1718378882932,2.5485,145.19,145.13,22.4764]
[1718378883213,2.5485,145.19,145.12,7.6487]
[1718378883214,16.3214,145.2,145.16,7.18]
[1718378884831,15.2904,145.19,145.13,2.5494]
[1718378885010,38.7908,145.2,145.14,2.5491]
[1718378885205,38.7909,145.2,145.14,2.5491]
[1718378885438,31.1462,145.2,145.14,7.6475]
[1718378885648,26.0497,145.2,145.14,15.2952]
[1718378885816,31.1461,145.2,145.14,7.6476]
[1718378886419,26.0497,145.2,145.14,15.2953]
[1718378886920,16.3214,145.2,145.15,25.4905]
[1718378887134,18.8696,145.2,145.14,7.6475]
[1718378887813,18.8696,145.2,145.14,15.2952]
[1718378888332,16.3214,145.2,145.15,15.2942]
[1718378888811,16.3214,145.2,145.15,7.647]
[1718378889014,23.966,145.2,145.14,2.5491]
[1718378889227,16.3214,145.2,145.15,7.6471]
[1718378889442,22.503554,145.24,145.14,0.17]
[1718378889714,17.408454,145.24,145.19,22.4698]
[1718378889944,17.408454,145.24,145.2,7.18]
[1718378890124,25.050954,145.24,145.19,7.18]
[1718378890327,17.408454,145.24,145.2,7.18]
[1718378890731,17.408454,145.24,145.18,22.9362]
[1718378891054,17.408454,145.24,145.2,7.18]
[1718378891055,19.955954,145.24,145.2,7.18]
[1718378891252,17.408454,145.24,145.19,2.5483]
[1718378891547,17.408454,145.24,145.2,7.18]
[1718378892118,32.693554,145.24,145.17,23.4476]
[1718378892327,17.408454,145.24,145.19,9.7283]
[1718378892527,17.408454,145.24,145.2,9.7281]
[1718378893160,17.408454,145.24,145.21,7.6437]
[1718378893457,0.817954,145.24,145.21,7.18]
[1718378893962,0.817954,145.24,145.21,9.728]
[1718378894447,0.817954,145.24,145.21,7.18]
[1718378895154,0.817954,145.24,145.2,2.548]
[1718378895446,0.817954,145.24,145.21,7.18]
[1718378895848,0.817954,145.24,145.21,9.728]
[1718378896042,0.817954,145.24,145.21,7.18]
[1718378896638,0.817954,145.24,145.22,7.6432]
[1718378896856,0.817954,145.24,145.21,25.4788]
[1718378897157,0.817954,145.24,145.22,2.5478]
[1718378897527,0.817954,145.24,145.21,22.931]
[1718378897729,0.817954,145.24,145.23,9.7276]
[1718378898232,0.817954,145.24,145.23,32.6566]
[1718378898582,0.817954,145.24,145.23,32.8266]
[1718378898745,0.817954,145.24,145.23,77.9966]
[1718378899151,0.817954,145.24,145.23,78.1666]
[1718378899650,0.817954,145.24,145.23,9.7276]
[1718378900190,0.817954,145.24,145.23,98.8666]
[1718378900483,0.817954,145.24,145.23,99.0366]
[1718378901267,0.817954,145.24,145.23,70.4766]
[1718378901472,0.817954,145.24,145.23,98.8666]
[1718378901784,0.817954,145.24,145.23,99.0366]
[1718378902392,15.2269,145.32,145.23,99.0366]
[1718378902393,15.2269,145.32,145.23,119.0366]
[1718378902599,15.2269,145.32,145.27,5.0938]
[1718378902894,15.2269,145.32,145.27,2.5469]
[1718378903299,15.2269,145.32,145.28,7.18]
[1718378903632,15.2269,145.32,145.29,7.18]
[1718378904111,15.2269,145.32,145.3,7.18]
[1718378904404,15.2269,145.32,145.28,7.64]
[1718378904405,2.5456,145.35,145.31,7.18]
[1718378904570,2.5456,145.35,145.29,7.18]
[1718378904571,7.6373,145.34,145.29,7.18]
[1718378904891,2.5458,145.34,145.3,7.18]
[1718378905078,2.5458,145.34,145.29,7.18]
[1718378905079,7.6378,145.33,145.29,7.18]
[1718378905690,7.18,145.34,145.25,28.72]
[1718378905994,25.3779,145.31,145.25,9.7272]
[1718378906204,15.6516,145.31,145.26,22.4626]
[1718378906367,15.6516,145.31,145.26,2.5471]
[1718378906563,15.6516,145.31,145.27,7.18]
[1718378906993,15.6516,145.31,145.24,22.9269]
[1718378907191,15.6516,145.31,145.21,37.1291]
[1718378907192,7.6401,145.29,145.23,2.5476]
[1718378907393,2.5465,145.3,145.24,9.7274]
[1718378907602,25.3779,145.31,145.25,9.7272]
[1718378907792,15.6516,145.31,145.27,7.18]
[1718378907983,15.6516,145.31,145.25,7.6417]
[1718378908181,15.6516,145.31,145.26,30.1038]
[1718378908378,15.6516,145.31,145.28,7.18]
[1718378908586,15.6516,145.31,145.29,7.18]
[1718378910403,26.2786,145.34,145.29,7.18]
[1718378910982,19.0986,145.34,145.29,7.18]
[1718378911185,46.6447,145.34,145.27,2.5468]
[1718378911523,2.5459,145.33,145.27,7.6407]
[1718378911698,49.1906,145.34,145.27,7.6407]
[1718378911897,26.2787,145.34,145.28,2.5467]
[1718378912090,49.1906,145.34,145.27,7.6407]
[1718378912510,19.0987,145.34,145.27,22.9227]
[1718378912683,7.18,145.31,145.25,2.5472]
[1718378913004,9.7263,145.31,145.25,2.5473]
[1718378913304,9.7262,145.32,145.26,7.18]
[1718378913486,9.7262,145.31,145.26,7.18]
[1718378913686,9.7263,145.31,145.26,7.18]
[1718378913901,16.5528,145.34,145.27,20.7]
[1718378914116,6.2725,145.36,145.33,7.18]
[1718378914602,2.5452,145.37,145.31,2.5461]
[1718378914808,30.298,145.38,145.33,7.18]
[1718378915014,22.6627,145.38,145.33,7.18]
[1718378915185,25.2077,145.38,145.32,2.546]
[1718378915381,18.0277,145.38,145.33,7.18]
[1718378915603,15.4827,145.38,145.34,7.18]
[1718378915781,5.091,145.36,145.29,2.5465]
[1718378915985,2.5458,145.34,145.3,7.18]
[1718378916203,2.5457,145.35,145.3,7.18]
[1718378916517,7.6366,145.36,145.31,7.18]
[1718378916705,32.6325,145.37,145.32,7.18]
[1718378916893,25.4525,145.37,145.3,2.5463]
[1718378917500,22.9087,145.36,145.29,2.5465]
[1718378917815,7.6362,145.36,145.29,7.6396]
[1718378917986,7.6362,145.36,145.28,25.4668]
[1718378917987,2.5455,145.35,145.28,25.4668]
[1718378918608,2.5456,145.35,145.29,2.5465]
[1718378919130,25.4542,145.36,145.29,2.5465]
[1718378919302,7.6367,145.35,145.28,7.6401]
[1718378919610,7.6368,145.35,145.28,15.2804]
[1718378919803,2.5456,145.35,145.29,2.5466]
[1718378920003,22.9078,145.37,145.3,2.5464]
[1718378920219,15.2724,145.36,145.29,2.5465]
[1718378920534,10.1812,145.37,145.3,15.2781]
[1718378920535,2.5452,145.37,145.3,15.2781]
[1718378920825,7.6368,145.35,145.28,25.467]
[1718378921129,2.5456,145.35,145.28,25.467]
[1718378921485,2.5456,145.35,145.29,2.5466]
[1718378921711,15.2735,145.35,145.28,7.6401]
[1718378921921,15.2736,145.35,145.28,7.6401]
[1718378922218,100.0,145.31,145.21,7.6439]
[1718378922452,100.0,145.31,145.18,44.7186]
[1718378922453,16.0781,145.28,145.18,44.7186]
[1718378922616,25.4707,145.27,145.2,7.6444]
[1718378922817,2.5471,145.27,145.21,2.5479]
[1718378923016,30.3634,145.28,145.21,7.6439]
[1718378923238,25.2697,145.28,145.22,2.5478]
[1718378923545,25.2697,145.28,145.21,25.4799]
[1718378923851,7.6409,145.27,145.2,25.4807]
[1718378924024,15.2818,145.27,145.2,2.548]
[1718378924214,2.547,145.27,145.2,22.9334]
[1718378924422,2.547,145.27,145.2,25.4814]
[1718378924629,2.547,145.27,145.21,2.548]
[1718378925056,22.7228,145.28,145.22,2.5478]
[1718378925216,2.547,145.27,145.2,12.7407]
[1718378925416,48.1915,145.28,145.21,2.5479]
[1718378926042,48.1915,145.28,145.22,15.2868]
[1718378926043,22.7228,145.28,145.22,15.2868]
[1718378926229,25.2696,145.28,145.21,25.479]
[1718378926550,25.2696,145.28,145.22,2.5478]
[1718378926753,30.3632,145.28,145.21,7.6437]
[1718378928259,38.0036,145.28,145.21,2.5479]
[1718378928429,30.3632,145.28,145.21,15.288]
[1718378928636,30.3632,145.28,145.21,7.6439]
[1718378928953,38.0036,145.28,145.21,2.5479]
[1718378929464,38.0036,145.28,145.19,2.5483]
[1718378929465,22.9253,145.26,145.19,2.5483]
[1718378929756,2.5473,145.25,145.18,25.4851]
[1718378930059,2.5473,145.25,145.15,47.77945668]
[1718378930060,2.5476,145.24,145.17,7.6459]
[1718378930350,7.6417,145.26,145.19,7.645]
[1718378930551,15.2831,145.26,145.19,7.645]
[1718378930942,7.6425,145.24,145.17,7.6457]
[1718378931151,2.5474,145.25,145.18,5.097]
[1718378931330,22.9249,145.26,145.19,2.5483]
[1718378931527,100.0,145.27,145.15,42.19]
[1718378931528,2.5471,145.27,145.15,42.19]
[1718378931731,7.6414,145.26,145.19,25.4827]
[1718378932039,2.5471,145.26,145.2,2.5481]
[1718378932240,17.8291,145.27,145.2,2.5481]
[1718378932552,25.4701,145.27,145.2,7.6445]
[1718378932759,25.4701,145.27,145.2,2.5481]
[1718378933131,22.7228,145.28,145.22,2.5477]
[1718378933345,22.7228,145.28,145.22,7.6433]
[1718378933734,25.2696,145.28,145.22,2.5477]
[1718378933953,22.7228,145.28,145.22,2.5477]
[1718378934322,25.2696,145.28,145.22,2.5477]
[1718378934957,22.7228,145.28,145.22,7.6434]
[1718378935158,16.0781,145.28,145.23,15.2857]
[1718378935356,16.0781,145.28,145.23,7.6428]
[1718378935654,6.6402,145.31,145.24,2.5474]
[1718378935828,7.64,145.29,145.22,15.4568]
[1718378936147,2.5466,145.29,145.23,2.5476]
[1718378936354,25.4648,145.3,145.23,2.5476]
[1718378936540,2.5467,145.29,145.23,2.5476]
[1718378936735,15.6231,145.32,145.25,2.5472]
[1718378936736,20.7155,145.32,145.25,2.5472]
[1718378936934,41.0845,145.32,145.25,7.6418]
[1718378937131,18.1693,145.32,145.25,10.1891]
[1718378937359,15.6231,145.32,145.26,2.547]
[1718378937739,15.2779,145.31,145.24,5.0948]
[1718378937942,7.639,145.31,145.24,15.2846]
[1718378938440,2.5463,145.31,145.24,25.4744]
[1718378938673,2.5463,145.31,145.24,22.9271]
[1718378938866,2.5463,145.31,145.25,2.5473]
[1718378939951,2.5462,145.31,145.24,25.4744]
[1718378940268,22.9168,145.31,145.23,23.098]
[1718378940433,115.6231,145.32,145.21,48.751]
[1718378940635,2.5469,145.28,145.21,7.6438]
[1718378940849,25.4682,145.28,145.21,7.6438]
[1718378941054,5.0937,145.28,145.21,10.1919]
[1718378941260,17.827,145.29,145.22,2.5477]
[1718378941261,22.9203,145.29,145.22,2.5477]
[1718378941469,25.467,145.29,145.22,7.6433]
[1718378941761,2.5469,145.27,145.21,2.5479]
[1718378941932,12.7333,145.29,145.22,7.6433]
[1718378942136,15.2808,145.28,145.21,7.6437]
[1718378942448,7.6404,145.28,145.21,15.2877]
[1718378942879,17.8259,145.3,145.22,7.6435]
[1718378943174,25.4655,145.3,145.23,7.6428]
[1718378943338,15.6231,145.32,145.2,0.17]
[1718378943532,15.2788,145.3,145.23,7.6426]
[1718378944048,15.2787,145.3,145.23,25.4759]
[1718378944234,15.2787,145.3,145.23,7.6426]
[1718378944235,2.5466,145.29,145.23,7.6426]
[1718378944435,22.9181,145.3,145.23,2.5475]
[1718378944633,2.5466,145.29,145.23,2.5475]
[1718378944848,7.6395,145.3,145.23,25.4764]
[1718378945059,41.0847,145.32,145.25,7.6417]
[1718378945243,15.6231,145.32,145.26,7.6411]
[1718378945453,16.264,145.36,145.32,10.1838]
[1718378945647,6.901754,145.39,145.33,20.3669]
[1718378945970,22.171054,145.39,145.32,7.638]
[1718378946147,12.7257,145.38,145.31,2.7162]
[1718378946346,7.6357,145.37,145.31,45.0]
[1718378946547,2.5452,145.37,145.31,2.5462]
[1718378946748,6.901754,145.39,145.29,5.0931]
[1718378946749,7.6364,145.36,145.29,5.0931]
[1718378947058,25.4511,145.38,145.31,7.6385]
[1718378947258,2.5451,145.38,145.32,2.546]
[1718378947465,2.5452,145.37,145.31,7.6385]
[1718378947653,22.171154,145.39,145.32,7.6379]
[1718378947986,6.901754,145.39,145.28,0.34]
[1718378948150,2.5454,145.36,145.3,2.5463]
[1718378948482,7.6362,145.36,145.3,2.5464]
[1718378948647,22.9074,145.37,145.3,7.6392]
[1718378948980,106.901754,145.39,145.27,21.04]
[1718378949157,2.5454,145.36,145.29,22.9191]
[1718378949355,2.5454,145.36,145.3,2.5464]
[1718378949742,7.6362,145.36,145.29,25.4655]
[1718378949978,7.6362,145.36,145.27,0.34]
[1718378949979,17.8192,145.35,145.28,7.64]
[1718378950286,15.2735,145.35,145.28,25.4672]
[1718378950578,206.901754,145.39,145.27,0.34]
[1718378950579,106.901754,145.39,145.27,0.34]
[1718378950749,2.5454,145.36,145.3,7.6391]
[1718378950940,2.545,145.38,145.32,2.546]
[1718378951145,15.2704,145.38,145.31,25.4615]
[1718378951357,2.5454,145.36,145.29,22.9187]
[1718378951569,2.5453,145.37,145.3,25.6339]
[1718378951863,5.0909,145.36,145.29,5.093]
[1718378952064,25.4565,145.35,145.28,7.6402]
[1718378952368,12.7281,145.35,145.28,15.2803]
[1718378952662,25.4561,145.35,145.28,15.2803]
[1718378952879,25.4561,145.35,145.28,7.64]
[1718378953050,7.6364,145.36,145.3,2.5464]
[1718378953250,2.5455,145.36,145.3,2.5464]
[1718378953561,12.7256,145.38,145.31,2.5462]
[1718378953763,6.901754,145.39,145.32,12.7301]
[1718378953764,9.446654,145.39,145.32,12.7301]
[1718378954061,9.446654,145.39,145.33,2.5458]
[1718378954265,6.901754,145.39,145.34,22.9109]
[1718378954643,6.901754,145.39,145.34,7.6369]
[1718378954844,6.901754,145.39,145.34,7.637]
[1718378955148,6.901754,145.39,145.34,2.5457]
[1718378955969,6.901754,145.39,145.35,2.5455]
[1718378956274,6.901754,145.39,145.34,25.4569]
[1718378956452,6.901754,145.39,145.34,2.5456]
[1718378957154,22.906,145.38,145.31,2.5461]
[1718378957357,7.6358,145.37,145.31,2.5462]
[1718378957560,2.5453,145.37,145.31,7.6387]
[1718378957964,2.5453,145.37,145.31,2.5462]
[1718378958349,25.4514,145.38,145.31,7.6387]
[1718378958673,7.6358,145.37,145.3,22.9175]
[1718378958868,7.6358,145.37,145.3,25.4638]
[1718378959052,2.5455,145.36,145.3,2.5464]
[1718378959246,15.2716,145.37,145.3,7.6391]
[1718378959443,7.6359,145.37,145.3,25.4641]
[1718378959666,2.5454,145.36,145.3,2.5463]
[1718378959870,15.2717,145.37,145.3,15.2784]
[1718378960056,25.4512,145.38,145.31,7.6387]
[1718378960258,15.2714,145.37,145.3,25.4638]
[1718378960472,7.6357,145.37,145.3,25.4638]
[1718378960680,2.5452,145.37,145.31,2.5462]
[1718378960983,7.6356,145.37,145.31,2.5462]
[1718378961173,7.6356,145.37,145.3,25.4634]
[1718378961570,7.6356,145.37,145.3,7.6389]
[1718378961571,2.5454,145.36,145.3,7.6389]
[1718378961758,7.6362,145.36,145.29,22.9186]
[1718378961952,7.6362,145.36,145.3,2.5464]
[1718378962249,20.3652,145.35,145.28,5.0935]
[1718378962451,20.3652,145.35,145.27,22.9216]
[1718378962452,7.6373,145.34,145.27,22.9216]
[1718378962764,17.8195,145.35,145.27,22.9216]
[1718378962765,25.4564,145.35,145.28,7.6401]
[1718378963072,2.5457,145.35,145.28,5.0936]
[1718378963383,2.5456,145.35,145.29,7.6396]
[1718378963553,7.6367,145.35,145.28,25.467]
[1718378963877,25.4558,145.35,145.28,7.6399]
[1718378964060,2.5457,145.35,145.29,2.5465]
[1718378964254,100.0,145.37,145.29,5.0931]
[1718378964561,100.0,145.37,145.29,25.4656]
[1718378964562,7.6363,145.36,145.29,25.4656]
[1718378964871,2.5455,145.35,145.29,2.5464]
[1718378965372,7.6366,145.35,145.28,25.4667]
[1718378965684,25.4546,145.36,145.29,7.6398]
[1718378965894,2.5456,145.35,145.29,2.5466]
[1718378966357,25.4546,145.36,145.29,7.6398]
[1718378966558,7.6365,145.36,145.29,22.9194]
[1718378966777,2.5455,145.36,145.3,2.5464]
[1718378967479,2.5451,145.38,145.32,2.546]
[1718378967670,2.5451,145.38,145.31,12.7311]
[1718378967856,2.5451,145.38,145.32,2.546]
[1718378968055,7.6352,145.38,145.31,22.9161]
[1718378968275,7.6352,145.38,145.31,25.4622]
[1718378968701,25.4506,145.38,145.31,7.6385]
[1718378969166,9.446654,145.39,145.33,2.5459]
[1718378969485,2.5451,145.38,145.32,2.5459]
[1718378970255,25.4506,145.38,145.31,7.6384]
[1718378970456,2.5452,145.37,145.31,2.5461]
[1718378970690,7.6356,145.37,145.3,22.917]
[1718378970860,7.6356,145.37,145.31,2.5462]
[1718378971206,2.5452,145.37,145.31,2.5462]
[1718378971368,2.5465,145.3,145.23,22.9281]
[1718378971564,7.6388,145.31,145.24,2.5474]
[1718378971773,2.5463,145.31,145.24,7.6423]
[1718378972175,100.0,145.34,145.22,5.0956]
[1718378972360,2.5467,145.29,145.22,7.6433]
[1718378972560,7.6394,145.3,145.23,2.5476]
[1718378972758,17.9691,145.3,145.23,7.6429]
[1718378972989,20.5158,145.3,145.19,42.19]
[1718378973161,15.4226,145.3,145.23,12.7382]
[1718378973480,15.4226,145.3,145.24,2.5474]
[1718378973789,23.0619,145.3,145.23,7.6428]
[1718378973960,2.5466,145.29,145.22,25.4773]
[1718378974171,2.5466,145.29,145.22,7.6431]
[1718378974384,2.5468,145.28,145.21,7.6438]
[1718378974689,25.4704,145.27,145.2,2.5481]
[1718378975000,121.8883,145.3,145.17,6.0098]
[1718378975300,25.4719,145.26,145.19,2.5483]
[1718378975477,2.5473,145.25,145.18,2.5484]
[1718378975675,7.6419,145.25,145.18,2.5484]
[1718378975999,25.4721,145.26,145.19,2.5483]
[1718378976174,22.9249,145.26,145.18,7.6454]
[1718378976381,7.642,145.25,145.18,2.5483]
[1718378976896,25.4721,145.26,145.19,2.5483]
[1718378977103,100.0,145.24,145.14,6.4715]
[1718378977272,100.0,145.24,145.11,36.4961]
[1718378977273,106.3128,145.24,145.11,15.7961]
[1718378977473,25.4808,145.21,145.14,2.5492]
[1718378977691,22.9341,145.2,145.12,5.099]
[1718378977888,2.5484,145.19,145.12,7.6485]
[1718378978072,2.5484,145.19,145.12,15.2974]
[1718378978280,100.0,145.22,145.11,15.7961]
[1718378978486,2.5484,145.19,145.12,7.6487]
[1718378978720,22.9354,145.19,145.11,22.9469]
[1718378978898,100.0,145.2,145.11,2.5496]
[1718378979079,34.2684,145.19,145.12,2.5495]
[1718378979419,7.6457,145.18,145.11,2.5497]
[1718378979632,2.5486,145.18,145.11,7.6492]
[1718378979998,39.3655,145.19,145.07,42.06836066]
[1718378979999,16.4292,145.19,145.07,42.06836066]
[1718378980221,16.4292,145.19,145.15,2.549]
[1718378980685,16.4292,145.19,145.14,2.5491]
[1718378980896,16.4292,145.19,145.13,7.648]
[1718378981094,16.4292,145.19,145.12,17.8465]
[1718378981301,24.0745,145.19,145.12,2.5496]
[1718378981506,24.0745,145.19,145.13,2.5494]
[1718378981507,16.4292,145.19,145.13,2.5494]
[1718378981706,16.4292,145.19,145.14,2.5492]
[1718378982498,16.4292,145.19,145.13,25.4938]
[1718378982681,16.4292,145.19,145.13,7.6479]
[1718378983195,16.4292,145.19,145.13,2.5492]
[1718378983397,16.4292,145.19,145.13,7.648]
[1718378983595,16.4292,145.19,145.12,25.4949]
[1718378983783,18.9776,145.19,145.12,7.6484]
[1718378984278,16.4292,145.19,145.13,2.5494]
[1718378984478,16.4292,145.19,145.13,7.6482]
[1718378984684,2.5483,145.2,145.13,15.2965]
[1718378984876,25.4795,145.22,145.15,2.549]
[1718378985279,2.548,145.21,145.14,25.4922]
[1718378985588,7.6437,145.22,145.14,17.8446]
[1718378985903,15.2873,145.22,145.15,2.549]
[1718378986077,7.6437,145.22,145.15,2.549]
[1718378986280,15.2872,145.22,145.15,2.549]
[1718378986490,15.2872,145.22,145.14,25.492]
[1718378986692,22.9307,145.22,145.14,22.9429]
[1718378986978,2.548,145.21,145.14,7.6474]
[1718378987499,2.5479,145.22,145.15,7.6471]